bitfinex-derivatives/quotes_ETHF0:USTF0_20250803
["timestamp","ask_amount","ask_price","bid_price","bid_amount"]
[1754221631212,3.78032,3493.4,3492.9,0.57259]
[1754221631413,3.2078,3493.8,3493.1,0.57255]
[1754221631709,0.98181112,3493.7,3493.2,0.57253]
[1754221631910,0.98181112,3493.6,3493.2,0.57253]
[1754221632115,0.98181112,3493.5,3493.2,0.57253]
[1754221632412,3.2078,3493.8,3493.4,0.5725]
[1754221632713,0.98201036,3493.7,3493.4,0.5725]
[1754221633006,3.2078,3493.8,3493.6,0.57247]
[1754221636314,0.57237,3494.3,3493.6,0.57247]
[1754221636610,0.98234145,3494.2,3494.0,0.57241]
[1754221636803,3.78016,3494.4,3493.8,0.57244]
[1754221637115,0.98229146,3494.3,3494.0,0.57241]
[1754221637316,3.2078,3494.4,3494.0,0.57241]
[1754221638113,0.57232,3494.6,3494.0,0.57241]
[1754221638415,0.98189364,3494.5,3494.0,0.57241]
[1754221638715,0.98189364,3494.4,3494.2,0.57237]
[1754221638906,3.2078,3494.9,3494.2,0.57237]
[1754221639108,0.98188175,3494.8,3494.2,0.57237]
[1754221639310,0.98188175,3494.7,3494.2,0.57237]
[1754221639510,0.98188175,3494.6,3494.4,0.57234]
[1754221639813,0.98188175,3494.5,3494.2,0.57237]
[1754221640003,0.57229,3494.8,3494.2,0.57237]
[1754221640206,0.9813099,3494.7,3494.2,0.57237]
[1754221640407,3.78007,3494.9,3494.4,0.57234]
[1754221640609,0.96856414,3494.8,3494.4,0.57234]
[1754221640809,0.96856414,3494.7,3494.4,0.57234]
[1754221641114,3.78007,3494.9,3494.4,0.57234]
[1754221641316,0.96830436,3494.8,3494.4,0.57234]
[1754221641516,3.2078,3494.9,3494.4,0.57234]
[1754221641718,0.96829652,3494.8,3494.4,0.57234]
[1754221641917,3.2078,3494.9,3494.4,0.57234]
[1754221642219,3.2078,3494.9,3494.6,0.57231]
[1754221642611,3.2078,3494.9,3494.6,20.41931]
[1754221643920,0.57221,3495.3,3494.7,0.57229]
[1754221644304,0.57221,3495.3,3494.6,23.6271]
[1754221644808,0.57222,3495.2,3494.6,23.6271]
[1754221645016,0.5722,3495.3,3494.6,23.0548]
[1754221645215,3.77999,3495.4,3494.7,0.5723]
[1754221645419,0.96732342,3495.3,3494.7,0.5723]
[1754221645612,3.77999,3495.4,3494.7,0.5723]
[1754221645812,0.57222,3495.2,3494.7,0.5723]
[1754221646119,3.2078,3495.4,3494.8,19.85]
[1754221646313,0.96725715,3495.3,3494.8,19.85]
[1754221646516,3.2078,3495.4,3494.8,19.85]
[1754221646711,0.96725711,3495.3,3494.8,19.85]
[1754221646917,0.57224,3495.1,3494.8,19.85]
[1754221648019,3.78006,3495.0,3494.3,0.57236]
[1754221648319,3.78006,3495.0,3494.4,19.84]
[1754221648719,3.78006,3495.0,3494.4,20.41234]
[1754221649523,3.2078,3495.0,3494.2,41.21]
[1754221649715,3.2078,3495.0,3494.3,20.41736]
[1754221649716,0.57226,3494.9,3494.3,20.41736]
[1754221650917,3.78005,3495.0,3494.5,0.57232]
[1754221651624,0.57229,3494.8,3494.3,19.845]
[1754221651921,0.57227,3494.9,3494.3,20.41736]
[1754221652123,0.57227,3494.9,3494.5,0.57233]
[1754221652322,3.78005,3495.0,3494.5,0.57233]
[1754221653622,3.2078,3495.0,3494.6,0.57231]
[1754221654215,3.2078,3495.0,3494.7,19.836]
[1754221654417,2.43024,3496.0,3494.7,19.836]
[1754221654418,3.2078,3495.4,3495.2,0.57221]
[1754221654624,3.2078,3495.4,3495.3,19.836]
[1754221656227,3.2078,3495.9,3495.6,0.57214]
[1754221656523,3.77991,3495.9,3495.4,0.57217]
[1754221656724,3.77991,3495.9,3495.3,20.40819]
[1754221657627,3.77991,3495.9,3495.4,0.57218]
[1754221657926,3.2078,3495.9,3495.4,0.57218]
[1754221658128,3.2078,3495.9,3495.6,0.57214]
[1754221660126,1.0,3496.0,3495.6,0.57214]
[1754221660319,1.0,3496.0,3495.8,0.57211]
[1754221660623,1.0,3496.0,3495.9,19.855]
[1754221662828,1.0,3496.0,3495.9,23.0628]
[1754221663128,1.0,3496.0,3495.9,19.855]
[1754221667826,1.0,3496.0,3495.9,23.0628]
[1754221668331,1.0,3496.0,3495.9,19.855]
[1754221669333,1.0,3496.0,3495.9,23.0628]
[1754221670730,1.0,3496.0,3495.9,19.855]
[1754221671034,1.0,3496.0,3495.9,19.808]
[1754221671227,2.02961931,3496.0,3495.9,19.808]
[1754221671930,2.02961931,3496.0,3495.9,19.804]
[1754221675334,2.02961931,3496.0,3495.7,0.57212]
[1754221675632,1.0,3496.0,3495.9,19.797]
[1754221675830,2.02965097,3496.0,3495.9,19.797]
[1754221676235,2.02965097,3496.0,3495.9,19.79]
[1754221677931,1.0,3496.0,3495.9,19.79]
[1754221678434,2.02960664,3496.0,3495.9,19.79]
[1754221678624,2.02960901,3496.0,3495.9,19.79]
[1754221683139,2.02960901,3496.0,3495.9,22.9978]
[1754221686938,2.02960901,3496.0,3495.9,22.9778]
[1754221687631,2.02960901,3496.0,3495.9,22.9768]
[1754221688036,2.02960901,3496.0,3495.9,22.9938]
[1754221689339,2.02960901,3496.0,3495.9,3.2078]
[1754221689640,2.02960901,3496.0,3495.9,19.823]
[1754221689934,2.02960901,3496.0,3495.7,0.57212]
[1754221690136,1.02960901,3495.9,3495.8,19.821]
[1754221695145,1.02960901,3495.9,3495.8,19.808]
[1754221697739,1.0,3496.0,3495.9,0.5721]
[1754221697940,2.02950741,3496.0,3495.9,3.7799]
[1754221700543,1.0,3496.0,3495.9,3.7799]
[1754221705044,1.03015577,3496.9,3496.7,0.57197]
[1754221705252,1.03015577,3497.0,3496.8,19.776]
[1754221705547,1.02941301,3496.9,3496.8,19.776]
[1754221707550,1.02933794,3496.9,3496.8,20.34795]
[1754221707846,1.02933794,3496.9,3496.8,19.776]
[1754221710346,1.02933794,3496.9,3496.8,19.769]
[1754221716756,1.02933794,3496.9,3496.5,3.7798]
[1754221716961,1.02933794,3496.8,3496.7,0.57197]
[1754221717657,1.02933794,3496.8,3496.5,3.2078]
[1754221717858,1.02940049,3496.7,3496.6,19.767]
[1754221718963,1.02940049,3496.7,3496.4,0.57201]
[1754221719164,1.02940049,3496.6,3496.5,19.767]
[1754221721263,1.03015577,3497.2,3496.9,0.57193]
[1754221721463,1.02939003,3497.1,3497.0,19.767]
[1754221725764,2.0595458,3497.1,3497.0,19.767]
[1754221725969,1.02939003,3497.1,3497.0,19.767]
[1754221726170,2.0595458,3497.1,3497.0,19.767]
[1754221728570,1.02939003,3497.1,3497.0,19.767]
[1754221732670,1.02939003,3497.1,3497.0,20.33892]
[1754221732866,1.02939003,3497.1,3497.0,19.767]
[1754221733975,1.02939003,3497.1,3497.0,19.763]
[1754221734276,1.02939003,3497.1,3497.0,20.33492]
[1754221734671,1.02939003,3497.1,3497.0,19.763]
[1754221739574,1.03015577,3497.3,3497.1,0.5719]
[1754221739770,1.02932655,3497.2,3497.1,0.5719]
[1754221740578,1.02932655,3497.2,3497.1,0.79624944]
[1754221741672,1.02932655,3497.2,3497.1,0.5719]
[1754221742681,1.02932655,3497.2,3497.1,19.76]
[1754221744074,1.02932655,3497.2,3496.6,3.2078]
[1754221744075,0.57193,3497.0,3496.6,3.2078]
[1754221744274,1.02932655,3497.2,3496.7,19.759]
[1754221744275,0.57189,3497.2,3496.7,19.759]
[1754221744876,1.02930875,3497.1,3496.7,19.759]
[1754221745074,1.42965,3497.4,3496.6,3.2078]
[1754221745379,1.60118417,3497.3,3496.7,20.32996]
[1754221745679,0.5719,3497.1,3496.7,19.758]
[1754221745873,1.02933887,3497.0,3496.7,19.758]
[1754221746075,1.02933887,3496.9,3496.7,19.758]
[1754221746278,0.5719,3497.1,3496.7,19.758]
[1754221746579,1.02935668,3497.0,3496.7,19.758]
[1754221746779,1.02935668,3496.9,3496.7,19.758]
[1754221746973,1.02935668,3496.8,3496.7,19.758]
[1754221748977,1.02935668,3496.8,3496.6,3.2078]
[1754221748978,0.5719,3497.2,3496.6,3.2078]
[1754221749177,1.02932278,3497.1,3496.7,19.757]
[1754221749371,1.02932278,3497.0,3496.7,19.757]
[1754221749575,1.02932278,3496.9,3496.7,20.32897]
[1754221749775,1.02932278,3496.8,3496.7,20.32897]
[1754221750073,1.02932278,3496.8,3496.7,19.757]
[1754221751782,1.02932278,3496.8,3496.6,3.2078]
[1754221751974,3.77971,3497.1,3496.7,19.757]
[1754221752174,1.02940118,3497.0,3496.7,19.757]
[1754221752377,1.02940118,3496.9,3496.7,19.757]
[1754221752674,1.02940118,3496.8,3496.7,19.757]
[1754221753376,1.02940118,3496.8,3496.7,19.756]
[1754221753581,1.02940118,3496.8,3496.6,3.2078]
[1754221753784,0.57193,3497.0,3496.7,19.756]
[1754221753982,1.02938619,3496.9,3496.7,19.756]
[1754221754283,1.02938619,3496.8,3496.7,19.756]
[1754221758483,1.02938619,3496.8,3496.6,3.2078]
[1754221758484,1.60134619,3496.8,3496.6,3.2078]
[1754221758688,0.57199,3496.6,3496.2,41.177]
[1754221758886,1.02938619,3496.5,3496.3,19.755]
[1754221759075,1.02938619,3496.4,3496.3,19.755]
[1754221764189,1.02938619,3496.4,3496.0,3.2078]
[1754221764494,1.02938619,3496.3,3496.1,19.754]
[1754221764697,1.02938619,3496.2,3496.1,19.754]
[1754221765586,1.02938619,3496.2,3496.1,19.755]
[1754221766093,0.57207,3496.1,3495.5,0.57216]
[1754221766391,1.02938619,3496.0,3495.6,19.755]
[1754221766595,1.02938619,3495.9,3495.6,19.755]
[1754221766786,0.57211,3495.9,3495.6,19.755]
[1754221767096,3.2078,3496.3,3495.2,44.3878]
[1754221767391,1.02971041,3496.2,3495.5,0.57216]
[1754221767590,1.02971041,3496.1,3495.6,19.754]
[1754221767786,1.02971041,3496.0,3495.6,19.754]
[1754221768093,1.02971041,3495.9,3495.6,19.754]
[1754221768289,3.2078,3496.3,3495.6,19.754]
[1754221768494,1.02970455,3496.2,3495.6,19.754]
[1754221768694,1.02970455,3496.1,3495.6,19.754]
[1754221768997,0.57212,3495.8,3495.6,19.754]
[1754221769299,3.2078,3496.3,3495.6,19.754]
[1754221769500,1.02972705,3496.2,3495.6,19.754]
[1754221769700,0.57211,3495.9,3495.6,19.754]
[1754221771090,0.57211,3495.9,3495.7,19.756]
[1754221771997,3.2078,3496.3,3495.7,19.756]
[1754221772185,1.02971596,3496.2,3495.7,19.756]
[1754221772389,3.2078,3496.8,3496.4,0.57201]
[1754221772590,1.60147405,3496.7,3496.5,19.755]
[1754221772791,1.02950405,3496.6,3496.5,19.755]
[1754221773489,0.572,3496.5,3496.4,19.755]
[1754221773684,1.60150405,3496.5,3496.4,19.755]
[1754221775795,1.60150405,3496.5,3496.1,0.57206]
[1754221775796,1.60150405,3496.5,3496.0,20.32508]
[1754221775998,1.02950405,3496.4,3496.0,20.32508]
[1754221776294,1.02950405,3496.3,3496.0,20.32508]
[1754221776496,0.572,3496.5,3496.0,20.32508]
[1754221776793,0.57204,3496.3,3496.0,19.753]
[1754221776998,0.57202,3496.5,3496.1,0.57207]
[1754221777192,1.02959139,3496.4,3496.0,20.32508]
[1754221777395,1.02959139,3496.3,3496.0,20.32508]
[1754221777595,0.57202,3496.5,3496.0,20.32508]
[1754221777798,1.02957823,3496.4,3496.2,0.57205]
[1754221777998,3.77976,3496.8,3496.4,0.57201]
[1754221778193,1.02951069,3496.7,3496.4,0.57201]
[1754221778401,1.02951069,3496.6,3496.2,0.57205]
[1754221778600,1.02951069,3496.5,3496.2,0.57205]
[1754221778801,1.02951069,3496.4,3496.2,0.57205]
[1754221779002,3.2078,3496.8,3496.2,0.57205]
[1754221779205,1.0295072,3496.7,3496.4,0.57201]
[1754221779395,1.0295072,3496.6,3496.5,19.753]
[1754221785007,1.0295072,3496.6,3496.5,19.75]
[1754221793410,1.0295072,3496.6,3496.3,0.57203]
[1754221793615,1.0295072,3496.5,3496.4,19.745]
[1754221810129,1.0295072,3496.5,3496.3,0.57203]
[1754221810329,1.0295072,3496.4,3496.3,0.57203]
[1754221810537,1.0295072,3496.4,3496.3,20.30803]
[1754221811038,1.0295072,3496.4,3496.1,3.2078]
[1754221811241,1.6015472,3496.3,3495.8,0.57211]
[1754221811531,1.6015572,3496.2,3495.7,44.3908]
[1754221811738,1.60226577,3495.9,3495.3,3.77999]
[1754221811930,1.0295072,3495.8,3495.4,19.736]
[1754221812130,1.03015577,3495.6,3495.4,19.735]
[1754221812332,1.0295072,3495.5,3495.4,19.735]
[1754221812530,1.6016772,3495.5,3495.4,19.735]
[1754221812937,1.6016772,3495.5,3495.1,19.735]
[1754221813135,1.0295072,3495.4,3495.1,19.735]
[1754221813330,1.0295072,3495.3,3495.1,19.735]
[1754221813536,1.0295072,3495.2,3495.1,19.735]
[1754221814435,0.57217,3495.5,3495.1,19.735]
[1754221814633,0.5722,3495.3,3494.9,3.2078]
[1754221814934,1.02989048,3495.2,3495.0,19.735]
[1754221815134,0.57219,3495.4,3495.0,19.735]
[1754221815336,1.02992885,3495.3,3495.0,19.735]
[1754221815535,1.02992885,3495.2,3495.0,19.735]
[1754221815728,0.57219,3495.4,3495.0,19.735]
[1754221815928,4.23795577,3495.7,3494.9,3.2078]
[1754221815929,0.57222,3495.2,3494.9,3.2078]
[1754221816140,1.02993518,3495.1,3494.8,19.737]
[1754221816335,3.78002,3495.2,3494.8,19.737]
[1754221816537,1.02998662,3495.1,3494.8,19.737]
[1754221816836,3.2078,3495.2,3494.4,3.2078]
[1754221817031,0.57225,3495.0,3494.5,20.30832]
[1754221817233,1.02998019,3494.9,3494.5,19.736]
[1754221817433,0.57224,3495.1,3494.6,0.57231]
[1754221817736,1.03001527,3495.0,3494.5,20.30832]
[1754221817936,0.57223,3495.1,3494.5,20.30832]
[1754221818140,1.03002258,3495.0,3494.5,20.30832]
[1754221818339,1.54252683,3495.7,3494.5,19.736]
[1754221818340,1.03015577,3495.6,3494.5,19.736]
[1754221818543,3.2078,3495.7,3495.2,3.78001]
[1754221818846,3.2078,3495.7,3495.4,0.57218]
[1754221819142,3.2078,3495.7,3495.5,20.30716]
[1754221819336,1.6019787,3495.6,3495.1,3.78003]
[1754221819537,0.57215,3495.6,3495.2,19.737]
[1754221819837,1.02988912,3495.5,3495.2,19.737]
[1754221820040,0.57219,3495.4,3495.1,19.737]
[1754221820440,0.57219,3495.4,3494.9,0.57226]
[1754221820642,1.02994849,3495.3,3495.0,20.30924]
[1754221820837,0.5722,3495.4,3495.0,20.30924]
[1754221821039,1.02994535,3495.3,3495.0,20.30924]
[1754221821239,0.57216,3495.6,3495.0,20.30924]
[1754221821439,1.02990861,3495.5,3495.0,20.30924]
[1754221821639,3.2078,3495.7,3494.7,3.2078]
[1754221821852,3.2078,3495.2,3494.8,19.737]
[1754221822147,0.57219,3495.4,3494.9,19.736]
[1754221822347,1.02997599,3495.3,3494.9,19.736]
[1754221822542,0.57219,3495.4,3494.9,19.736]
[1754221822543,4.23777599,3495.2,3494.9,19.736]
[1754221822742,3.78002,3495.2,3494.9,19.737]
[1754221824044,0.57221,3495.3,3494.9,19.737]
[1754221824344,1.02994713,3495.2,3494.9,19.738]
[1754221824546,0.57221,3495.3,3494.9,19.738]
[1754221825449,0.57224,3495.1,3494.9,19.738]
[1754221826447,0.57222,3495.2,3494.9,19.738]
[1754221826846,0.57222,3495.2,3494.9,20.31026]
[1754221827043,3.78,3495.3,3494.9,20.31026]
[1754221827245,3.78,3495.3,3494.9,19.738]
[1754221828650,0.57223,3495.1,3494.9,19.738]
[1754221829152,0.57222,3495.2,3494.9,19.738]
[1754221829647,0.57225,3495.0,3494.7,0.57229]
[1754221829953,0.57225,3495.0,3494.9,19.737]
[1754221830445,0.57229,3494.8,3494.6,3.2078]
[1754221830646,0.57229,3494.8,3494.7,19.736]
[1754221832050,0.57229,3494.8,3494.6,3.2078]
[1754221832249,0.57229,3494.8,3494.7,19.736]
[1754221833052,0.57227,3494.9,3494.7,19.736]
[1754221837348,0.57227,3494.9,3492.0,8.758]
[1754221837349,1.43071,3494.8,3493.6,3.2078]
[1754221837657,3.2078,3494.4,3493.7,19.736]
[1754221838054,0.57236,3494.3,3493.7,0.57246]
[1754221838356,3.78015,3494.4,3493.8,0.57244]
[1754221839355,1.03024034,3494.3,3493.8,0.57244]
[1754221839554,1.60262034,3494.2,3493.7,0.57246]
[1754221839757,1.03024034,3494.1,3493.7,0.57246]
[1754221839958,1.03024034,3494.0,3493.7,0.57246]
[1754221840158,0.57237,3494.3,3493.7,0.57246]
[1754221840352,1.0302591,3494.2,3493.7,0.57246]
[1754221840655,1.0302591,3494.1,3493.7,0.57246]
[1754221840959,1.0302591,3494.0,3493.7,0.57246]
[1754221841154,0.57237,3494.3,3493.7,0.57246]
[1754221841155,1.0302591,3493.9,3493.7,0.57246]
[1754221841352,0.57237,3494.3,3493.7,0.57246]
[1754221841546,1.03025276,3494.2,3493.7,0.57246]
[1754221841745,1.03025276,3494.1,3493.7,0.57246]
[1754221841956,1.03025276,3494.0,3493.7,0.57246]
[1754221842157,3.2078,3494.4,3494.3,0.57236]
[1754221842353,4.23799367,3494.4,3494.2,20.30737]
[1754221842553,0.78117501,3494.3,3494.2,20.30737]
[1754221844961,0.78117501,3494.3,3494.2,19.735]
[1754221852065,0.78117501,3494.3,3493.7,3.2078]
[1754221852269,0.5724,3494.1,3493.7,3.2078]
[1754221852464,0.57243,3493.9,3493.6,19.733]
[1754221853168,1.03015577,3494.0,3493.3,3.78032]
[1754221853372,0.57247,3493.7,3493.4,19.732]
[1754221853563,0.57245,3493.8,3493.4,19.732]
[1754221853963,1.03015577,3494.0,3493.4,19.732]
[1754221853964,0.57243,3493.9,3493.4,19.732]
[1754221854163,0.57247,3493.7,3493.4,19.732]
[1754221854573,1.03036846,3493.6,3493.4,19.732]
[1754221854773,1.03036846,3493.5,3493.4,19.732]
[1754221861575,0.57251,3493.4,3492.9,4.81102745]
[1754221861778,1.03042541,3493.3,3493.0,19.732]
[1754221862075,1.0304347,3493.2,3493.0,19.732]
[1754221862277,1.03046251,3493.1,3493.0,19.732]
[1754221862669,1.03046251,3493.1,3492.9,4.23844745]
[1754221862968,1.43149,3492.9,3491.7,3.78058]
[1754221863171,1.43149,3492.9,3491.8,19.733]
[1754221863172,3.2078,3492.6,3491.8,19.733]
[1754221863379,2.05703952,3492.8,3491.2,41.43701297]
[1754221863380,3.2078,3492.2,3491.2,45.21768297]
[1754221863575,0.57274,3492.0,3491.4,0.57284]
[1754221863770,1.03046251,3491.9,3491.4,0.57284]
[1754221863965,1.03046251,3491.8,3491.4,0.57284]
[1754221864177,3.78051,3492.2,3491.4,0.57284]
[1754221864377,0.57274,3492.0,3491.4,0.57284]
[1754221864677,1.03089193,3491.9,3491.4,0.57284]
[1754221864878,1.03089193,3491.8,3491.6,0.5728]
[1754221865068,3.78051,3492.2,3491.7,19.733]
[1754221865268,0.57275,3492.0,3491.2,44.4218]
[1754221865468,1.6036473,3491.9,3491.3,19.732]
[1754221865668,3.2078,3492.2,3491.2,22.9398]
[1754221865669,1.0308873,3491.8,3491.2,22.9398]
[1754221865874,0.57283,3491.5,3491.2,19.732]
[1754221866175,4.2386873,3491.4,3490.8,3.2078]
[1754221866476,1.6037373,3491.3,3490.8,19.732]
[1754221866678,1.0308873,3491.2,3490.8,19.732]
[1754221866975,1.0308873,3491.1,3490.8,19.732]
[1754221867176,1.0308873,3491.0,3490.9,0.57292]
[1754221867571,4.23437701,3491.8,3491.4,0.57284]
[1754221867777,1.03099043,3491.7,3491.4,0.57284]
[1754221867978,1.03099043,3491.6,3491.4,0.57284]
[1754221868169,1.03099043,3491.5,3491.4,0.57284]
[1754221868572,1.02657701,3492.1,3492.0,0.57274]
[1754221868772,2.05751446,3492.1,3491.9,0.57275]
[1754221868972,1.03093745,3492.0,3491.9,0.57275]
[1754221869171,2.05751446,3492.0,3491.8,0.57277]
[1754221869378,1.03093745,3491.9,3491.8,0.57277]
[1754221869979,1.03093745,3491.9,3491.7,0.57278]
[1754221870180,1.03093745,3491.8,3491.6,0.5728]
[1754221870481,1.03093745,3491.7,3491.6,0.5728]
[1754221872674,0.32994745,3491.7,3491.6,3.7806]
[1754221872887,1.02657701,3492.6,3491.7,1.43198]
[1754221873181,1.02657701,3492.8,3492.1,3.2078]
[1754221873486,1.02657701,3492.9,3492.7,0.57262]
[1754221873688,1.02657701,3493.1,3493.0,0.57258]
[1754221873878,1.02657701,3493.2,3493.0,0.57258]
[1754221874986,1.02657701,3493.3,3493.0,0.57258]
[1754221875178,1.02657701,3493.2,3492.9,0.57259]
[1754221875377,3.2078,3493.0,3492.8,20.3116]
[1754221875579,3.2078,3493.0,3492.8,0.5726]
[1754221876282,1.02657701,3493.1,3492.8,0.5726]
[1754221876787,1.02657701,3493.3,3493.1,0.57256]
[1754221877583,3.2078,3493.6,3493.0,19.738]
[1754221877584,4.23437701,3493.6,3493.5,0.57249]
[1754221877788,3.2078,3493.6,3493.5,0.57249]
[1754221878986,3.2078,3493.6,3493.5,20.30849]
[1754221880089,1.02657701,3493.8,3493.5,20.30849]
[1754221880295,1.02657701,3493.9,3493.8,0.57244]
[1754221880692,1.02657701,3494.0,3493.8,0.57244]
[1754221881189,4.23437701,3494.1,3493.8,0.57244]
[1754221881395,3.2078,3494.1,3493.8,0.57244]
[1754221884695,1.02657701,3494.7,3494.5,0.57232]
[1754221884891,1.03013888,3494.6,3494.5,0.57232]
[1754221886394,3.2078,3495.2,3494.3,4.63869]
[1754221886700,1.0300485,3495.1,3494.9,0.57226]
[1754221886903,1.0300485,3495.0,3494.9,0.57226]
[1754221887597,1.0300485,3495.0,3494.7,19.733]
[1754221887798,1.0300485,3494.9,3494.8,0.57228]
[1754221888098,3.2078,3495.2,3494.8,0.57228]
[1754221888299,1.0300016,3495.1,3494.8,0.57228]
[1754221888500,1.0300016,3495.0,3494.8,0.57228]
[1754221888700,3.2078,3495.2,3494.8,0.57228]
[1754221888902,1.02998804,3495.1,3494.8,0.57228]
[1754221889099,3.2078,3495.2,3494.8,0.57228]
[1754221889307,1.02998881,3495.1,3494.8,0.57228]
[1754221889514,3.2078,3495.2,3494.8,0.57228]
[1754221889710,1.02998855,3495.1,3494.8,0.57228]
[1754221889904,3.2078,3495.2,3494.8,0.57228]
[1754221890115,3.2078,3495.2,3495.0,0.57224]
[1754221890315,3.2078,3495.2,3494.9,0.57226]
[1754221892716,3.78002,3495.2,3494.9,0.57226]
[1754221894217,3.2078,3495.2,3494.9,0.57226]
[1754221895011,3.2078,3495.2,3494.5,0.57232]
[1754221895218,3.78009,3494.8,3494.4,19.727]
[1754221895915,3.78009,3494.8,3494.4,20.29934]
[1754221896113,3.2078,3494.8,3494.4,0.57235]
[1754221897006,0.57235,3494.5,3493.9,3.2078]
[1754221897310,3.2078,3494.8,3494.0,20.29941]
[1754221898114,1.0301765,3494.7,3494.0,20.29941]
[1754221898315,0.5723,3494.7,3494.2,0.57238]
[1754221898919,0.57233,3494.5,3494.2,0.57238]
[1754221899120,0.57232,3494.6,3494.2,0.57238]
[1754221900122,1.03016934,3494.5,3494.2,0.57238]
[1754221900314,1.03016934,3494.4,3494.2,0.57238]
[1754221900513,0.57232,3494.6,3494.1,0.57239]
[1754221900715,1.03017159,3494.5,3494.1,0.57239]
[1754221900918,1.03017159,3494.4,3494.1,0.57239]
[1754221901118,1.03017399,3494.3,3494.1,0.57239]
[1754221901321,0.57232,3494.6,3494.1,0.57239]
[1754221901520,1.03017557,3494.5,3494.1,0.57239]
[1754221901721,1.03017557,3494.4,3494.1,0.57239]
[1754221901918,1.03017557,3494.3,3494.0,19.727]
[1754221902124,1.03018127,3494.2,3494.0,19.727]
[1754221902324,0.57235,3494.4,3494.0,19.727]
[1754221902522,1.03018274,3494.3,3493.9,3.2078]
[1754221902723,1.60256274,3494.2,3493.8,19.727]
[1754221903025,0.57238,3494.2,3493.8,20.29944]
[1754221903220,1.03023098,3494.1,3493.8,20.29944]
[1754221903416,1.03023098,3494.0,3493.8,20.29944]
[1754221903617,1.03023098,3493.9,3493.8,20.29944]
[1754221906024,2.56348153,3495.3,3493.8,20.29944]
[1754221906025,1.02657701,3494.6,3494.5,0.57233]
[1754221906225,2.0566487,3494.6,3494.5,20.29933]
[1754221906425,1.03007169,3494.6,3494.5,20.29933]
[1754221911027,1.03007169,3494.6,3494.4,3.2078]
[1754221911327,1.03007169,3494.5,3494.4,3.2078]
[1754221911523,1.03007169,3494.5,3494.4,22.9328]
[1754221912426,2.0566487,3494.5,3494.4,22.9328]
[1754221912822,2.0566487,3494.5,3494.4,19.725]
[1754221913525,2.0566487,3494.5,3494.4,22.9328]
[1754221913924,1.03007169,3494.5,3494.4,22.9328]
[1754221914126,2.0566487,3494.5,3494.4,22.9328]
[1754221915229,1.03007169,3494.5,3494.4,22.9328]
[1754221917432,1.03007169,3494.5,3494.4,22.9318]
[1754221917825,1.03007169,3494.5,3494.4,19.723]
[1754221918038,2.0566487,3494.5,3494.4,19.723]
[1754221918327,2.57259852,3494.5,3494.4,19.723]
[1754221918532,0.57235,3494.4,3494.0,19.723]
[1754221918837,1.02769302,3494.1,3494.0,19.723]
[1754221919027,2.57161122,3494.1,3494.0,19.723]
[1754221920932,2.57161122,3494.1,3493.8,44.4148]
[1754221921125,1.54153953,3494.1,3494.0,19.724]
[1754221921429,2.57177308,3494.1,3494.0,19.724]
[1754221921632,2.57177308,3494.1,3493.8,44.4148]
[1754221921833,2.57177308,3494.0,3493.9,19.724]
[1754221922132,1.03023355,3494.0,3493.9,19.724]
[1754221924135,2.05759014,3494.0,3493.9,19.724]
[1754221925333,1.03023355,3494.0,3493.9,19.724]
[1754221929939,1.03023355,3494.0,3493.8,3.2078]
[1754221930140,0.5724,3494.1,3493.9,19.725]
[1754221930342,1.03023795,3494.0,3493.9,19.725]
[1754221931837,1.02735659,3494.6,3493.9,19.725]
[1754221932040,1.03011903,3494.5,3494.3,0.57236]
[1754221932245,1.59964659,3494.8,3494.4,19.725]
[1754221932548,1.03006053,3494.7,3494.4,19.725]
[1754221932738,1.03006053,3494.6,3494.4,19.725]
[1754221932938,1.03006053,3494.5,3494.4,19.725]
[1754221938038,3.2078,3494.9,3494.4,19.725]
[1754221938245,1.02999576,3494.8,3494.4,19.725]
[1754221938440,1.02999576,3494.7,3494.5,0.57233]
[1754221938647,3.2078,3494.9,3494.7,0.5723]
[1754221938846,1.02999484,3494.8,3494.7,0.5723]
[1754221939049,1.02999484,3494.8,3494.6,0.5723]
[1754221939245,1.02999484,3494.7,3494.5,0.57233]
[1754221939444,3.2078,3494.9,3494.5,0.57233]
[1754221939645,1.02999595,3494.8,3494.7,19.723]
[1754221940243,3.2078,3495.4,3494.7,19.723]
[1754221940448,1.02987346,3495.3,3495.1,0.57222]
[1754221940749,1.02987346,3495.2,3495.1,0.57222]
[1754221940947,1.02987346,3495.2,3495.1,20.29522]
[1754221941646,1.02987346,3495.2,3495.1,23.50302]
[1754221942348,1.02987346,3495.2,3495.1,3.2078]
[1754221942542,1.02987346,3495.2,3494.4,41.203]
[1754221942543,0.57231,3494.7,3494.4,41.203]
[1754221942748,0.57231,3494.7,3494.4,19.728]
[1754221943052,1.03009149,3494.6,3494.4,19.728]
[1754221943254,1.03009149,3494.5,3494.4,19.728]
[1754221951855,1.03009149,3494.5,3493.8,3.2078]
[1754221952156,0.57239,3494.2,3493.9,19.722]
[1754221952455,1.03009149,3494.1,3493.9,19.722]
[1754221952656,0.57239,3494.2,3493.9,19.722]
[1754221952955,1.03017979,3494.1,3493.9,19.722]
[1754221953157,1.03017979,3494.0,3493.9,19.722]
[1754221953655,1.030188,3494.0,3493.9,19.722]
[1754221954659,3.2078,3494.5,3494.0,0.57241]
[1754221954860,1.03012974,3494.4,3494.2,0.57236]
[1754221955161,3.2078,3494.5,3494.3,19.723]
[1754221955459,1.03012185,3494.4,3494.3,19.723]
[1754221956763,0.57236,3494.3,3494.2,19.722]
[1754221957058,1.60248185,3494.3,3494.2,19.722]